[Event "XI Paracin Festival 2018"]
[Site "Paracin"]
[Date "2018.07.11"]
[Round "7"]
[White "Radovanovic, Nikola"]
[Black "Yordanov, Lachezar"]
[Result "1/2-1/2"]
[ECO "B19"]
[WhiteElo "2425"]
[BlackElo "2290"]
[Annotator "NA RC"]
[PlyCount "43"]
[EventDate "2018.07.06"]
[EventType "swiss"]
[EventCountry "SRB"]
[SourceTitle "playchess.com"]
[Source "ChessBase"]
[SourceQuality "1"]
[TimeControl "5400+30"]

1. e4 {[%emt 0:00:49]} c6 {[%emt 0:00:00]} 2. d4 {[%emt 0:00:13]} d5 {[%emt 0:00:00]} 3. Nd2 {[%emt 0:01:02]} dxe4 {[%emt 0:00:04]} 4. Nxe4 {[%emt 0:00:04]} Bf5 {[%emt 0:00:09]} 5. Ng3 {[%emt 0:00:06]} Bg6 {[%emt 0:00:06]} 6. h4 {[%emt 0:00:04]} h6 {[%emt 0:00:05]} 7. Nf3 {[%emt 0:00:04]} Nd7 {[%emt 0:00:07]} 8. h5 {[%emt 0:00:09]} Bh7 {[%emt 0:00:04]} 9. Bd3 {[%emt 0:00:06]} Bxd3 {[%emt 0:00:06]} 10. Qxd3 {[%emt 0:00:04]} e6 {[%emt 0:00:25]} 11. Bd2 {[%emt 0:00:12]} Ngf6 {[%emt 0:00:21]} 12. O-O-O {[%emt 0:00:09]} Qc7 {[%emt 0:01:18]} 13. Kb1 {[%emt 0:00:26]} Be7 {[%emt 0:01:32]} 14. Ne4 {[%emt 0:06:44]} Nxe4 {[%emt 0:00:28]} 15. Qxe4 {[%emt 0:00:06]} Nf6 {[%emt 0:00:11]} 16. Qe2 {[%emt 0:00:40]} O-O-O {[%emt 0:06:52]} 17. c4 {[%emt 0:15:09]} c5 {[%emt 0:04:46]} 18. Bc3 {[%emt 0:01:24]} Qf4 {[%emt 0:06:14]} 19. Qe5 {[%emt 0:31:16]} Qe4+ {[%emt 0:06:43]} 20. Kc1 {[%emt 0:02:34]} Bd6 {[%emt 0:00:25]} 21. Qxe4 {[%emt 0:00:06]} Nxe4 {[%emt 0:00:08]} 22. Be1 {[%emt 0:01:39]} 1/2-1/2

[Event "XI Paracin Festival 2018"]
[Site "Paracin"]
[Date "2018.07.11"]
[Round "7"]
[White "Abramovic, Bosko"]
[Black "Popovic, Aleksandar M"]
[Result "1-0"]
[ECO "A45"]
[WhiteElo "2409"]
[BlackElo "2264"]
[Annotator "NA"]
[PlyCount "74"]
[EventDate "2018.07.06"]
[EventType "swiss"]
[EventCountry "SRB"]
[SourceTitle "playchess.com"]
[Source "ChessBase"]
[SourceQuality "1"]
[TimeControl "5400+30"]

1. d4 {[%emt 0:00:00]} Nf6 {[%emt 0:00:00]} 2. g3 {[%emt 0:00:00]} g6 {[%emt 0:02:28]} 3. Bg2 {[%emt 0:00:00]} Bg7 {[%emt 0:00:05]} 4. e4 {[%emt 0:00:02]} d6 {[%emt 0:01:15]} 5. Nc3 {[%emt 0:00:08]} O-O {[%emt 0:00:11]} 6. Nge2 {[%emt 0:00:05]} c5 {[%emt 0:08:10]} 7. dxc5 {[%emt 0:03:39]} dxc5 {[%emt 0:00:48]} 8. Qxd8 {[%emt 0:00:07]} Rxd8 {[%emt 0:00:03]} 9. Be3 {[%emt 0:00:11]} Na6 {[%emt 0:00:53]} 10. h3 {[%emt 0:00:10]} Ne8 {[%emt 0:05:28]} 11. O-O {[%emt 0:00:23]} b6 {[%emt 0:11:08]} 12. Rad1 {[%emt 0:09:10]} Bb7 {[%emt 0:08:20]} 13. a3 {[%emt 0:00:07]} Nac7 {[%emt 0:02:07]} 14. f4 {[%emt 0:00:15]} Nd6 {[%emt 0:05:56]} 15. e5 {[%emt 0:04:32]} Bxg2 {[%emt 0:00:06]} 16. Kxg2 {[%emt 0:00:05]} Nc4 {[%emt 0:06:18]} 17. Bc1 {[%emt 0:01:25]} f5 {[%emt 0:08:31]} 18. exf6 {[%emt 0:06:12]} exf6 {[%emt 0:06:22]} 19. b3 {[%emt 0:02:52]} Nd6 {[%emt 0:00:25]} 20. Nd5 {[%emt 0:04:13]} Nxd5 {[%emt 0:04:04]} 21. Rxd5 {[%emt 0:00:08]} f5 {[%emt 0:01:16]} 22. Rfd1 {[%emt 0:00:11]} Re8 {[%emt 0:00:30]} 23. Kf3 {[%emt 0:03:11]} Nb5 {[%emt 0:02:28]} 24. a4 {[%emt 0:06:44]} Nd4+ {[%emt 0:01:42]} 25. Nxd4 {[%emt 0:00:17]} Bxd4 {[%emt 0:01:59]} 26. g4 {[%emt 0:10:18]} Rad8 {[%emt 0:03:01]} 27. Rxd8 {[%emt 0:09:42]} Rxd8 {[%emt 0:00:06]} 28. Be3 {[%emt 0:02:42]} Kf7 {[%emt 0:00:53]} 29. b4 {[%emt 0:04:09]} Ke7 {[%emt 0:02:43]} 30. bxc5 {[%emt 0:01:18]} Bxc5 {[%emt 0:05:19]} 31. Bxc5+ {[%emt 0:00:42]} bxc5 {[%emt 0:00:05]} 32. Rxd8 {[%emt 0:00:06]} Kxd8 {[%emt 0:01:54]} 33. gxf5 {[%emt 0:00:18]} gxf5 {[%emt 0:00:08]} 34. Kg3 {[%emt 0:00:06]} Ke7 {[%emt 0:02:10]} 35. Kh4 {[%emt 0:00:06]} c4 {[%emt 0:02:19]} 36. Kg5 {[%emt 0:00:40]} Ke6 {[%emt 0:00:02]} 37. c3 {[%emt 0:00:22]} Kd5 1-0

[Event "XI Paracin Festival 2018"]
[Site "Paracin"]
[Date "2018.07.11"]
[Round "7"]
[White "Radovanovic, Mihajlo"]
[Black "Tugstumur, Yesuntumur"]
[Result "0-1"]
[ECO "E91"]
[WhiteElo "2402"]
[BlackElo "2116"]
[Annotator "NA"]
[PlyCount "116"]
[EventDate "2018.07.06"]
[EventType "swiss"]
[EventCountry "SRB"]
[SourceTitle "playchess.com"]
[Source "ChessBase"]
[SourceQuality "1"]
[TimeControl "5400+30"]

1. Nf3 {[%emt 0:00:00]} Nf6 {[%emt 0:00:00]} 2. c4 {[%emt 0:00:00]} g6 {[%emt 0:00:27]} 3. Nc3 {[%emt 0:01:11]} Bg7 {[%emt 0:01:23]} 4. e4 {[%emt 0:00:44]} d6 {[%emt 0:00:27]} 5. d4 {[%emt 0:00:06]} O-O {[%emt 0:00:12]} 6. Be2 {[%emt 0:00:04]} Na6 {[%emt 0:00:25]} 7. O-O {[%emt 0:00:27]} e5 {[%emt 0:00:10]} 8. Be3 {[%emt 0:00:20]} Ng4 {[%emt 0:00:14]} 9. Bg5 {[%emt 0:00:08]} Qe8 {[%emt 0:00:29]} 10. dxe5 {[%emt 0:07:14]} dxe5 {[%emt 0:01:07]} 11. h3 {[%emt 0:00:13]} h6 {[%emt 0:00:44]} 12. Bd2 {[%emt 0:00:21]} Nf6 {[%emt 0:00:15]} 13. Be3 {[%emt 0:00:18]} Qe7 {[%emt 0:00:52]} 14. Nd5 {[%emt 0:10:36]} Qd8 {[%emt 0:01:56]} 15. Nxf6+ {[%emt 0:03:09]} Qxf6 {[%emt 0:00:10]} 16. c5 {[%emt 0:00:08]} Rd8 {[%emt 0:14:49]} 17. Qc1 {[%emt 0:02:33]} Kh7 {[%emt 0:03:57]} 18. Bc4 {[%emt 0:12:08]} Bxh3 {[%emt 0:13:32]} 19. c6 {[%emt 0:21:20]} Qxc6 {[%emt 0:09:21]} 20. Bxa6 {[%emt 0:03:43]} Qxe4 {[%emt 0:00:51]} 21. Qc4 {[%emt 0:00:10]} Bf5 {[%emt 0:00:47]} 22. Qxe4 {[%emt 0:01:08]} Bxe4 {[%emt 0:00:06]} 23. Be2 {[%emt 0:00:26]} f5 {[%emt 0:02:08]} 24. Rac1 {[%emt 0:05:27]} c6 {[%emt 0:01:49]} 25. b3 {[%emt 0:00:57]} f4 {[%emt 0:09:24]} 26. Bc5 {[%emt 0:00:10]} Bd5 {[%emt 0:00:07]} 27. Rfd1 {[%emt 0:04:23]} e4 {[%emt 0:01:13]} 28. Nd4 {[%emt 0:00:08]} h5 {[%emt 0:04:17]} 29. Nc2 {[%emt 0:02:04]} Bh6 {[%emt 0:03:57]} 30. Bc4 {[%emt 0:02:18]} b6 {[%emt 0:01:46]} 31. Be7 {[%emt 0:03:15]} Rd7 {[%emt 0:00:38]} 32. Bf6 {[%emt 0:00:44]} Rf8 {[%emt 0:05:25]} 33. Bb2 {[%emt 0:00:22]} e3 {[%emt 0:01:52]} 34. f3 {[%emt 0:01:00]} Rfd8 {[%emt 0:05:10]} 35. Bf6 {[%emt 0:00:15]} Rf8 {[%emt 0:00:06]} 36. Bc3 {[%emt 0:00:05]} Rfd8 {[%emt 0:00:36]} 37. Be2 {[%emt 0:04:02]} Bg7 {[%emt 0:02:03]} 38. Bxg7 {[%emt 0:00:38]} Kxg7 {[%emt 0:00:05]} 39. Nb4 {[%emt 0:03:02]} c5 {[%emt 0:01:00]} 40. Nd3 {[%emt 0:05:23]} g5 {[%emt 0:00:08]} 41. Nb2 {[%emt 0:03:35]} Kf6 {[%emt 0:01:56]} 42. Kf1 {[%emt 0:00:31]} h4 {[%emt 0:00:35]} 43. Bb5 {[%emt 0:02:06]} Rd6 {[%emt 0:00:07]} 44. Be2 {[%emt 0:01:20]} Be6 {[%emt 0:02:43]} 45. Rxd6 {[%emt 0:00:44]} Rxd6 {[%emt 0:00:05]} 46. Rd1 {[%emt 0:00:11]} Rxd1+ {[%emt 0:00:55]} 47. Nxd1 {[%emt 0:00:44]} Ke5 {[%emt 0:03:08]} 48. Nc3 {[%emt 0:01:04]} Bd7 {[%emt 0:02:33]} 49. Ba6 {[%emt 0:00:55]} h3 {[%emt 0:02:17]} 50. gxh3 {[%emt 0:00:05]} Bxh3+ {[%emt 0:00:04]} 51. Kg1 {[%emt 0:01:24]} g4 {[%emt 0:00:42]} 52. Bc8 {[%emt 0:00:25]} gxf3 {[%emt 0:02:15]} 53. Bxh3 {[%emt 0:00:06]} Kd4 {[%emt 0:00:03]} 54. Nb1 {[%emt 0:01:54]} Kd3 {[%emt 0:03:33]} 55. Bf5+ {[%emt 0:00:11]} Ke2 {[%emt 0:00:25]} 56. Bg4 {[%emt 0:00:08]} b5 {[%emt 0:00:44]} 57. Nc3+ {[%emt 0:00:44]} Kd3 {[%emt 0:00:13]} 58. Nd5 {[%emt 0:00:34]} e2 {[%emt 0:00:19]} 0-1

[Event "XI Paracin Festival 2018"]
[Site "Paracin"]
[Date "2018.07.11"]
[Round "7"]
[White "Peng, Shunkai"]
[Black "Bratkovic, Sham"]
[Result "1-0"]
[ECO "C65"]
[WhiteElo "2390"]
[BlackElo "2190"]
[Annotator "NA"]
[PlyCount "85"]
[EventDate "2018.07.06"]
[EventType "swiss"]
[EventCountry "SRB"]
[SourceTitle "playchess.com"]
[Source "ChessBase"]
[SourceQuality "1"]
[TimeControl "5400+30"]

1. e4 {[%emt 0:00:00]} e5 {[%emt 0:01:29]} 2. Nf3 {[%emt 0:00:16]} Nc6 {[%emt 0:00:12]} 3. Bb5 {[%emt 0:00:17]} Nf6 {[%emt 0:00:32]} 4. d3 {[%emt 0:00:31]} d6 {[%emt 0:00:25]} 5. O-O {[%emt 0:03:00]} a6 {[%emt 0:00:11]} 6. Bxc6+ {[%emt 0:02:27]} bxc6 {[%emt 0:00:06]} 7. Re1 {[%emt 0:00:14]} c5 {[%emt 0:02:47]} 8. a3 {[%emt 0:04:38]} Rb8 {[%emt 0:04:58]} 9. c3 {[%emt 0:01:37]} Be7 {[%emt 0:04:35]} 10. h3 {[%emt 0:04:15]} O-O {[%emt 0:01:20]} 11. Nbd2 {[%emt 0:10:28]} Be6 {[%emt 0:05:02]} 12. b4 {[%emt 0:04:02]} Nd7 {[%emt 0:04:10]} 13. d4 {[%emt 0:05:08]} cxd4 {[%emt 0:02:11]} 14. cxd4 {[%emt 0:00:27]} exd4 {[%emt 0:02:13]} 15. Nxd4 {[%emt 0:00:26]} Bf6 {[%emt 0:01:38]} 16. Nc6 {[%emt 0:12:42]} Qc8 {[%emt 0:15:48]} 17. Bb2 {[%emt 0:07:46]} Rb6 {[%emt 0:04:34]} 18. Bxf6 {[%emt 0:00:15]} Rxc6 {[%emt 0:00:09]} 19. Bd4 {[%emt 0:00:15]} Nb6 {[%emt 0:05:37]} 20. a4 {[%emt 0:02:28]} Bc4 {[%emt 0:06:33]} 21. Qh5 {[%emt 0:17:15]} f6 {[%emt 0:13:37]} 22. Ra3 {[%emt 0:14:00]} Bf7 {[%emt 0:07:46]} 23. Qd1 {[%emt 0:02:31]} d5 {[%emt 0:05:16]} 24. Rg3 {[%emt 0:01:15]} Nc4 {[%emt 0:01:19]} 25. exd5 {[%emt 0:02:25]} Bxd5 {[%emt 0:00:26]} 26. Nxc4 {[%emt 0:02:33]} Bxc4 {[%emt 0:00:40]} 27. Qh5 {[%emt 0:00:47]} Bf7 {[%emt 0:03:21]} 28. Qf3 {[%emt 0:00:48]} Re6 {[%emt 0:01:40]} 29. Rxe6 {[%emt 0:00:41]} Qxe6 {[%emt 0:00:16]} 30. Qxf6 {[%emt 0:00:01]} Qxf6 {[%emt 0:00:09]} 31. Bxf6 {[%emt 0:00:26]} g6 {[%emt 0:02:56]} 32. Rc3 Bd5 33. Be7 {[%emt 0:00:59]} Rc8 {[%emt 0:00:37]} 34. Rc5 {[%emt 0:00:48]} c6 {[%emt 0:00:25]} 35. Ra5 {[%emt 0:00:31]} Re8 {[%emt 0:00:27]} 36. Bd6 {[%emt 0:00:27]} Re1+ {[%emt 0:01:09]} 37. Kh2 {[%emt 0:00:01]} Re2 {[%emt 0:00:14]} 38. Kg3 {[%emt 0:00:21]} Bc4 {[%emt 0:00:16]} 39. Rc5 {[%emt 0:00:27]} Bd5 {[%emt 0:00:27]} 40. b5 {[%emt 0:00:46]} axb5 {[%emt 0:00:05]} 41. axb5 {[%emt 0:00:02]} Re6 {[%emt 0:00:35]} 42. Bc7 {[%emt 0:00:05]} Bxg2 {[%emt 0:02:03]} 43. b6 {[%emt 0:00:17]} 1-0

[Event "XI Paracin Festival 2018"]
[Site "Paracin"]
[Date "2018.07.11"]
[Round "7"]
[White "Wadsworth, Matthew J"]
[Black "Uuriintuya, Uurtsaikh"]
[Result "0-1"]
[ECO "A00"]
[WhiteElo "2377"]
[BlackElo "2158"]
[Annotator "NA"]
[PlyCount "76"]
[EventDate "2018.07.06"]
[EventType "swiss"]
[EventCountry "SRB"]
[SourceTitle "playchess.com"]
[Source "ChessBase"]
[SourceQuality "1"]
[TimeControl "5400+30"]

1. g3 {[%emt 0:03:02]} g6 {[%emt 0:00:00]} 2. Bg2 {[%emt 0:00:23]} Bg7 {[%emt 0:00:00]} 3. c4 {[%emt 0:00:23]} Nf6 {[%emt 0:00:37]} 4. Nc3 {[%emt 0:00:39]} O-O {[%emt 0:00:15]} 5. d3 {[%emt 0:00:57]} d6 {[%emt 0:00:27]} 6. e4 {[%emt 0:00:32]} c5 {[%emt 0:00:33]} 7. Nge2 {[%emt 0:04:30]} Nc6 {[%emt 0:00:45]} 8. O-O {[%emt 0:00:18]} a6 {[%emt 0:00:25]} 9. h3 {[%emt 0:00:51]} Rb8 {[%emt 0:00:31]} 10. a4 {[%emt 0:03:37]} Bd7 {[%emt 0:00:36]} 11. Be3 {[%emt 0:02:06]} Ne8 {[%emt 0:00:22]} 12. f4 {[%emt 0:17:37]} Nc7 {[%emt 0:01:13]} 13. f5 {[%emt 0:07:57]} b5 {[%emt 0:01:30]} 14. Rb1 {[%emt 0:03:48]} Nd4 {[%emt 0:05:25]} 15. axb5 {[%emt 0:11:34]} axb5 {[%emt 0:00:57]} 16. cxb5 {[%emt 0:01:28]} gxf5 {[%emt 0:17:19]} 17. exf5 {[%emt 0:07:09]} Nxf5 {[%emt 0:01:38]} 18. Bf2 {[%emt 0:00:09]} Nxb5 {[%emt 0:02:23]} 19. Ne4 {[%emt 0:02:45]} Be5 {[%emt 0:16:34]} 20. Nf4 {[%emt 0:01:25]} Ng7 {[%emt 0:00:52]} 21. Nh5 {[%emt 0:06:49]} f5 {[%emt 0:03:47]} 22. Ng5 {[%emt 0:02:49]} Nc7 {[%emt 0:00:27]} 23. b4 {[%emt 0:03:15]} cxb4 {[%emt 0:01:57]} 24. d4 {[%emt 0:01:04]} Bf6 {[%emt 0:01:02]} 25. Nxf6+ {[%emt 0:00:35]} exf6 {[%emt 0:05:20]} 26. Nf3 {[%emt 0:03:00]} Nd5 {[%emt 0:07:05]} 27. Qb3 {[%emt 0:06:11]} Be6 {[%emt 0:01:31]} 28. Nh4 {[%emt 0:00:46]} Rb5 {[%emt 0:03:22]} 29. Rfe1 {[%emt 0:03:19]} Bf7 {[%emt 0:02:13]} 30. Qd3 {[%emt 0:01:23]} Nc3 {[%emt 0:08:11]} 31. Ra1 {[%emt 0:02:16]} Ra5 {[%emt 0:00:44]} 32. d5 {[%emt 0:00:59]} Ne4 {[%emt 0:07:41]} 33. Nxf5 {[%emt 0:00:46]} Nxf2 {[%emt 0:00:18]} 34. Nh6+ {[%emt 0:01:02]} Kh8 {[%emt 0:00:02]} 35. Kxf2 {[%emt 0:00:17]} Qb6+ {[%emt 0:00:33]} 36. Kf1 {[%emt 0:00:27]} Bg6 {[%emt 0:00:49]} 37. Qc4 {[%emt 0:00:28]} Rxa1 {[%emt 0:00:40]} 38. Rxa1 {[%emt 0:00:01]} Qe3 {[%emt 0:00:10]} 0-1

[Event "XI Paracin Festival 2018"]
[Site "Paracin"]
[Date "2018.07.11"]
[Round "7"]
[White "Tomic, Aleksandar"]
[Black "Mehmed, Elif"]
[Result "1-0"]
[ECO "D02"]
[WhiteElo "2347"]
[BlackElo "1973"]
[Annotator "NA"]
[PlyCount "47"]
[EventDate "2018.07.06"]
[EventType "swiss"]
[EventCountry "SRB"]
[SourceTitle "playchess.com"]
[Source "ChessBase"]
[SourceQuality "1"]
[TimeControl "5400+30"]

1. d4 {[%emt 0:00:54]} d5 {[%emt 0:00:00]} 2. Nf3 {[%emt 0:00:08]} Nf6 {[%emt 0:00:00]} 3. Bf4 {[%emt 0:00:21]} c5 {[%emt 0:00:12]} 4. e3 {[%emt 0:00:38]} Nc6 {[%emt 0:01:14]} 5. Nbd2 {[%emt 0:01:08]} Nh5 {[%emt 0:01:06]} 6. Bg5 {[%emt 0:03:06]} h6 {[%emt 0:00:17]} 7. Bh4 {[%emt 0:00:09]} g5 {[%emt 0:05:00]} 8. Ne5 {[%emt 0:01:46]} Nxe5 9. dxe5 Ng7 {[%emt 0:02:18]} 10. Bg3 {[%emt 0:01:16]} Nf5 {[%emt 0:00:13]} 11. Qh5 {[%emt 0:10:45]} e6 {[%emt 0:11:03]} 12. e4 {[%emt 0:07:52]} Nxg3 {[%emt 0:09:02]} 13. hxg3 {[%emt 0:02:29]} Qc7 {[%emt 0:10:01]} 14. f4 {[%emt 0:02:31]} Bg7 {[%emt 0:01:02]} 15. O-O-O {[%emt 0:04:40]} Bd7 {[%emt 0:01:33]} 16. Be2 {[%emt 0:04:36]} Bc6 {[%emt 0:02:30]} 17. exd5 exd5 18. Bg4 {[%emt 0:04:49]} O-O {[%emt 0:07:08]} 19. Nf3 {[%emt 0:01:12]} gxf4 {[%emt 0:01:20]} 20. gxf4 {[%emt 0:01:36]} d4 {[%emt 0:02:49]} 21. Nh4 {[%emt 0:02:01]} Bd7 {[%emt 0:00:45]} 22. Bxd7 {[%emt 0:00:25]} Qxd7 {[%emt 0:00:05]} 23. Nf5 {[%emt 0:00:30]} Qe6 {[%emt 0:00:04]} 24. Qg4 {[%emt 0:00:20]} 1-0

[Event "XI Paracin Festival 2018"]
[Site "Paracin"]
[Date "2018.07.11"]
[Round "7"]
[White "Radovic, Luka"]
[Black "Ahmed, Fareed"]
[Result "1-0"]
[ECO "A09"]
[WhiteElo "2344"]
[BlackElo "1953"]
[Annotator "NA"]
[PlyCount "78"]
[EventDate "2018.07.06"]
[EventType "swiss"]
[EventCountry "SRB"]
[SourceTitle "playchess.com"]
[Source "ChessBase"]
[SourceQuality "1"]
[TimeControl "5400+30"]

1. Nf3 {[%emt 0:00:00]} d5 {[%emt 0:02:16]} 2. c4 {[%emt 0:02:11]} d4 {[%emt 0:02:20]} 3. b4 {[%emt 0:05:07]} c5 {[%emt 0:11:30]} 4. bxc5 {[%emt 0:02:48]} Nc6 {[%emt 0:00:03]} 5. g3 {[%emt 0:00:30]} e5 {[%emt 0:01:46]} 6. d3 {[%emt 0:00:27]} Bxc5 {[%emt 0:01:15]} 7. Bg2 {[%emt 0:00:11]} Nge7 {[%emt 0:00:16]} 8. O-O {[%emt 0:04:52]} O-O {[%emt 0:15:46]} 9. Ba3 {[%emt 0:05:55]} Bxa3 {[%emt 0:02:43]} 10. Nxa3 {[%emt 0:00:48]} Bf5 {[%emt 0:03:50]} 11. Nd2 {[%emt 0:12:59]} Qd7 {[%emt 0:02:04]} 12. Qb3 {[%emt 0:00:59]} b6 {[%emt 0:11:53]} 13. Rfe1 {[%emt 0:03:59]} Rac8 {[%emt 0:14:34]} 14. Nc2 {[%emt 0:03:45]} Na5 {[%emt 0:04:58]} 15. Qb2 {[%emt 0:03:43]} Nb7 {[%emt 0:00:20]} 16. a4 {[%emt 0:03:16]} Nc5 {[%emt 0:06:28]} 17. Qa3 {[%emt 0:02:28]} Nc6 {[%emt 0:01:42]} 18. Nb3 {[%emt 0:14:03]} Nxb3 {[%emt 0:10:03]} 19. Qxb3 {[%emt 0:00:32]} Be6 {[%emt 0:02:22]} 20. Qb5 {[%emt 0:05:26]} Qd6 {[%emt 0:00:51]} 21. Bxc6 {[%emt 0:07:40]} Rxc6 {[%emt 0:02:29]} 22. a5 {[%emt 0:00:31]} Rb8 {[%emt 0:00:58]} 23. Reb1 {[%emt 0:01:17]} Rcc8 {[%emt 0:00:18]} 24. Qa6 {[%emt 0:02:13]} Qc7 {[%emt 0:00:40]} 25. Na3 {[%emt 0:01:11]} Bd7 {[%emt 0:00:14]} 26. Nb5 {[%emt 0:00:52]} Bxb5 {[%emt 0:00:04]} 27. Rxb5 {[%emt 0:00:33]} bxa5 {[%emt 0:01:14]} 28. Rxb8 {[%emt 0:03:47]} Rxb8 {[%emt 0:00:32]} 29. Qxa5 {[%emt 0:00:38]} Qd6 {[%emt 0:00:30]} 30. Qxa7 {[%emt 0:00:35]} g6 {[%emt 0:00:06]} 31. c5 {[%emt 0:01:04]} Qd8 {[%emt 0:00:12]} 32. c6 {[%emt 0:00:40]} Rc8 {[%emt 0:00:05]} 33. Qb7 {[%emt 0:00:31]} Kg7 {[%emt 0:00:23]} 34. Ra7 {[%emt 0:00:40]} Qe8 {[%emt 0:00:07]} 35. Ra6 {[%emt 0:01:21]} Qd8 {[%emt 0:00:33]} 36. Qb5 {[%emt 0:01:21]} Qd6 {[%emt 0:01:34]} 37. Qc4 {[%emt 0:00:50]} Rc7 {[%emt 0:00:18]} 38. Rb6 {[%emt 0:00:26]} Kh6 {[%emt 0:00:45]} 39. Rb7 {[%emt 0:01:27]} Qxc6 {[%emt 0:00:50]} 1-0

[Event "XI Paracin Festival 2018"]
[Site "Paracin"]
[Date "2018.07.11"]
[Round "7"]
[White "Marjanovic, Annamaria"]
[Black "Atalik, Suat"]
[Result "0-1"]
[ECO "A10"]
[WhiteElo "2325"]
[BlackElo "2509"]
[Annotator "ChessBase"]
[PlyCount "78"]
[EventDate "2018.07.06"]
[EventType "swiss"]
[EventCountry "SRB"]
[SourceTitle "playchess.com"]
[Source "ChessBase"]
[SourceQuality "1"]
[TimeControl "5400+30"]

1. c4 {[%emt 0:00:00]} b6 {[%emt 0:00:00]} 2. e4 {[%emt 0:00:00]} Bb7 {[%emt 0:00:25]} 3. Nc3 {[%emt 0:00:04]} e5 {[%emt 0:00:22]} 4. Nge2 {[%emt 0:02:32]} Nf6 {[%emt 0:03:49]} 5. d3 {[%emt 0:01:36]} Bc5 {[%emt 0:00:51]} 6. h3 {[%emt 0:02:08]} c6 {[%emt 0:02:28]} 7. Ng3 {[%emt 0:07:45]} d5 {[%emt 0:01:16]} 8. Nf5 {[%emt 0:01:33]} g6 {[%emt 0:08:21]} 9. Ng3 {[%emt 0:00:39]} dxc4 {[%emt 0:01:48]} 10. dxc4 {[%emt 0:02:41]} Qxd1+ {[%emt 0:00:44]} 11. Nxd1 {[%emt 0:00:22]} h5 {[%emt 0:09:15]} 12. Bd3 {[%emt 0:01:48]} Na6 {[%emt 0:00:30]} 13. a3 {[%emt 0:04:57]} Bd4 {[%emt 0:00:30]} 14. Bg5 {[%emt 0:08:02]} Nh7 {[%emt 0:02:01]} 15. Be3 {[%emt 0:01:58]} Nc5 {[%emt 0:02:58]} 16. Bxd4 {[%emt 0:03:52]} Nxd3+ {[%emt 0:01:05]} 17. Kd2 {[%emt 0:00:08]} O-O-O {[%emt 0:00:26]} 18. Kxd3 {[%emt 0:01:42]} Rxd4+ {[%emt 0:00:39]} 19. Kc3 {[%emt 0:00:07]} Rhd8 {[%emt 0:01:53]} 20. h4 {[%emt 0:16:58]} Rd2 {[%emt 0:09:53]} 21. Kb3 {[%emt 0:01:59]} R8d3+ {[%emt 0:00:31]} 22. Ka2 {[%emt 0:00:17]} Rc2 {[%emt 0:00:16]} 23. c5 {[%emt 0:08:31]} Ba6 {[%emt 0:02:15]} 24. cxb6 {[%emt 0:03:03]} axb6 {[%emt 0:00:49]} 25. Kb1 {[%emt 0:05:06]} Rdd2 {[%emt 0:01:15]} 26. a4 {[%emt 0:01:29]} Bd3 {[%emt 0:02:20]} 27. Ka2 {[%emt 0:00:08]} Nf6 {[%emt 0:01:17]} 28. Re1 {[%emt 0:02:34]} Ng4 {[%emt 0:02:06]} 29. Nf1 {[%emt 0:02:57]} Bc4+ {[%emt 0:02:58]} 30. Ka3 {[%emt 0:00:11]} Rd3+ {[%emt 0:00:46]} 31. Nc3 {[%emt 0:00:09]} Rxf2 {[%emt 0:00:30]} 32. Rac1 {[%emt 0:01:06]} Rxg2 {[%emt 0:02:03]} 33. b3 {[%emt 0:01:06]} Be6 {[%emt 0:00:51]} 34. Nd5 {[%emt 0:00:51]} Kb7 {[%emt 0:03:18]} 35. Rxc6 {[%emt 0:01:13]} Kxc6 {[%emt 0:01:35]} 36. Nb4+ {[%emt 0:00:07]} Kb7 {[%emt 0:00:10]} 37. Nxd3 {[%emt 0:00:06]} g5 38. Ne3 {[%emt 0:06:24]} Rg3 {[%emt 0:01:02]} 39. Nxg4 hxg4 0-1

[Event "XI Paracin Festival 2018"]
[Site "Paracin"]
[Date "2018.07.11"]
[Round "7"]
[White "Pantelic, Sasa"]
[Black "McPhillips, Joseph"]
[Result "0-1"]
[ECO "A40"]
[WhiteElo "2316"]
[BlackElo "2402"]
[Annotator "NA"]
[PlyCount "86"]
[EventDate "2018.07.06"]
[EventType "swiss"]
[EventCountry "SRB"]
[SourceTitle "playchess.com"]
[Source "ChessBase"]
[SourceQuality "1"]
[TimeControl "5400+30"]

1. d4 {[%emt 0:00:00]} b5 {[%emt 0:07:10]} 2. Nf3 {[%emt 0:02:51]} Bb7 {[%emt 0:01:48]} 3. g3 {[%emt 0:00:46]} e6 {[%emt 0:00:37]} 4. Bg2 {[%emt 0:00:19]} c5 {[%emt 0:01:45]} 5. c3 {[%emt 0:02:00]} a5 {[%emt 0:08:53]} 6. O-O {[%emt 0:01:09]} a4 {[%emt 0:06:03]} 7. Re1 {[%emt 0:03:09]} Nf6 {[%emt 0:02:18]} 8. Bg5 {[%emt 0:00:55]} cxd4 {[%emt 0:16:16]} 9. Nxd4 {[%emt 0:12:46]} Bxg2 {[%emt 0:03:23]} 10. Kxg2 {[%emt 0:00:07]} b4 {[%emt 0:00:58]} 11. e4 {[%emt 0:02:17]} h6 {[%emt 0:06:48]} 12. Bxf6 {[%emt 0:07:00]} gxf6 {[%emt 0:00:03]} 13. Qf3 {[%emt 0:03:21]} Ra5 {[%emt 0:03:33]} 14. a3 {[%emt 0:04:26]} b3 {[%emt 0:00:46]} 15. Nd2 {[%emt 0:01:06]} Be7 {[%emt 0:04:04]} 16. Rad1 {[%emt 0:00:59]} Qc7 {[%emt 0:01:06]} 17. Qd3 {[%emt 0:01:45]} h5 {[%emt 0:05:09]} 18. h4 {[%emt 0:07:45]} Qb7 {[%emt 0:00:48]} 19. Kh2 {[%emt 0:03:11]} Rc5 {[%emt 0:01:18]} 20. Nc4 {[%emt 0:04:03]} Rg8 {[%emt 0:03:45]} 21. e5 {[%emt 0:13:08]} fxe5 {[%emt 0:09:11]} 22. Qh7 {[%emt 0:03:21]} Rf8 {[%emt 0:00:02]} 23. Nxe5 {[%emt 0:01:31]} Bf6 {[%emt 0:02:53]} 24. Ng6 {[%emt 0:08:15]} Bxd4 {[%emt 0:01:31]} 25. Rxd4 {[%emt 0:00:16]} Rf5 {[%emt 0:01:43]} 26. Nf4 {[%emt 0:02:48]} Qf3 {[%emt 0:05:55]} 27. Kg1 {[%emt 0:00:44]} Kd8 {[%emt 0:00:24]} 28. Re3 {[%emt 0:01:09]} Qc6 {[%emt 0:00:18]} 29. Nxh5 {[%emt 0:01:35]} d5 {[%emt 0:00:02]} 30. Qh6 {[%emt 0:03:38]} Nd7 {[%emt 0:00:49]} 31. g4 {[%emt 0:00:45]} Rg8 {[%emt 0:00:21]} 32. Kf1 {[%emt 0:02:29]} Qa6+ {[%emt 0:00:40]} 33. Ke1 {[%emt 0:00:11]} Kc7 {[%emt 0:02:43]} 34. Qh7 {[%emt 0:01:21]} Rg6 {[%emt 0:00:54]} 35. c4 {[%emt 0:02:25]} Qb6 {[%emt 0:00:48]} 36. Rdd3 {[%emt 0:02:03]} Rxg4 {[%emt 0:00:38]} 37. Ng3 {[%emt 0:00:23]} Qa5+ {[%emt 0:00:40]} 38. Rd2 {[%emt 0:00:55]} Rxf2 {[%emt 0:00:34]} 39. Ree2 {[%emt 0:00:53]} Rf3 {[%emt 0:00:48]} 40. Kd1 {[%emt 0:01:17]} Rgxg3 {[%emt 0:00:25]} 41. Re1 {[%emt 0:00:06]} Rf5 {[%emt 0:01:10]} 42. Qh8 {[%emt 0:00:17]} Rg4 {[%emt 0:00:37]} 43. h5 {[%emt 0:00:45]} Rxc4 {[%emt 0:00:13]} 0-1